bitfinex/quotes_ETHUSD_20220212
["timestamp","ask_amount","ask_price","bid_price","bid_amount"]
[1644651928673,0.001,2906.1,2904.9,1.5861]
[1644651928674,0.1721,2906.1,2904.9,1.5861]
[1644651928875,0.1721,2906.1,2904.9,0.8861]
[1644651929072,0.1721,2906.1,2904.9,0.5861]
[1644651929274,0.6495623,2906.0,2904.9,1.014]
[1644651929473,0.00790766,2905.6,2904.9,0.714]
[1644651929672,0.00790766,2905.6,2905.0,5.0]
[1644651929875,0.00790766,2905.6,2905.1,1.0]
[1644651930073,0.00790766,2905.6,2905.1,1.3]
[1644651930275,0.00790766,2905.6,2905.1,0.3]
[1644651930474,0.6495623,2906.4,2905.1,0.74]
[1644651930775,0.00790777,2905.5,2905.3,5.3]
[1644651931173,0.00790777,2905.5,2905.4,0.64101936]
[1644651931376,0.00790777,2905.5,2905.4,1.64101936]
[1644651931574,0.1719,2906.5,2905.4,1.94101936]
[1644651931774,0.2428368,2906.4,2905.9,0.85761556]
[1644651932026,0.0079077,2905.6,2905.3,7.6245]
[1644651932216,0.0079077,2905.6,2905.3,3.7706]
[1644651932417,0.0079077,2905.6,2905.2,0.4719]
[1644651932617,0.0079077,2905.6,2905.2,0.1719]
[1644651932917,0.1729,2906.1,2905.9,0.76408667]
[1644651933118,0.24249055,2906.0,2905.9,0.76408667]
[1644651933522,0.24249055,2906.0,2905.2,0.1719]
[1644651933724,0.77610055,2906.2,2905.3,1.7]
[1644651933926,0.122,2906.1,2905.1,0.25]
[1644651934122,3.50247029,2906.4,2905.2,0.1719]
[1644651934324,0.00792131,2905.9,2905.2,0.4719]
[1644651934528,0.00792131,2905.9,2905.8,0.81090896]
[1644651934724,0.00792131,2905.9,2905.2,0.1754364]
[1644651934926,0.00792131,2905.9,2905.2,0.0035364]
[1644651935127,0.1719,2905.8,2905.2,0.0035364]
[1644651935525,0.00792145,2905.7,2905.2,0.0035364]
[1644651935769,1.03277,2905.6,2905.2,0.0035364]
[1644651935969,1.03277,2905.6,2905.2,3.64e-05]
[1644651935970,3.34072514,2905.5,2905.2,3.64e-05]
[1644651936172,3.34072514,2905.5,2904.5,0.2396]
[1644651936173,0.0007636,2905.1,2904.5,0.2396]
[1644651936370,1.03312,2905.0,2904.5,0.2396]
[1644651937169,0.1721,2905.0,2904.5,0.2396]
[1644651937370,0.1721,2905.0,2904.7,0.67222324]
[1644651937570,0.1721,2905.0,2904.5,0.2396]
[1644651937971,0.00792109,2904.9,2904.5,0.2396]
[1644651938975,0.1721,2905.0,2904.5,0.2396]
[1644651939178,0.00792112,2904.8,2904.5,0.2396]
[1644651939919,0.00792112,2904.8,2903.9,0.001]
[1644651940118,2.03311,2905.0,2903.9,0.001]
[1644651940119,0.1721,2904.7,2903.9,0.001]
[1644651940320,0.86964899,2904.8,2903.3,0.001]
[1644651940518,0.86964899,2904.8,2903.0,3.5204]
[1644651940519,0.1721,2904.6,2903.2,0.001]
[1644651940717,0.1721,2904.7,2903.0,0.2503]
[1644651940919,0.86126,2904.1,2903.0,0.2513]
[1644651941120,0.86126,2904.1,2903.6,0.70018078]
[1644651941526,0.00853966,2903.7,2903.6,0.70018078]
[1644651942518,0.86126,2904.1,2903.6,0.70018078]
[1644651942719,0.00853973,2903.8,2903.6,0.70018078]
[1644651943570,0.86126,2904.1,2903.6,0.70018078]
[1644651943972,0.00853969,2903.8,2903.6,0.70018078]
[1644651944772,0.86126,2904.1,2903.6,0.70018078]
[1644651945273,0.00853969,2903.8,2903.6,0.70018078]
[1644651946074,0.86135,2904.0,2903.6,0.70018078]
[1644651946273,0.00639585,2903.8,2903.6,0.70018078]
[1644651946773,0.00639585,2903.8,2903.6,0.46821979]
[1644651947220,0.86125,2904.4,2903.6,0.46821979]
[1644651947421,0.00639585,2903.8,2903.6,0.46821979]
[1644651948423,0.86125,2904.4,2903.6,0.46821979]
[1644651948424,0.8613,2904.0,2903.6,0.46821979]
[1644651948623,1.5108123,2904.4,2903.6,0.46821979]
[1644651948624,0.1721,2904.3,2903.6,0.46821979]
[1644651948825,0.00639585,2903.8,2903.6,0.46821979]
[1644651949628,0.1721,2904.3,2903.6,0.46821979]
[1644651949825,1.72246,2904.4,2903.6,0.46821979]
[1644651949826,0.86121,2904.4,2903.6,0.46821979]
[1644651950027,1.174,2904.6,2904.3,0.76591038]
[1644651950325,0.1721,2904.7,2904.3,0.76591038]
[1644651950524,1.6827923,2904.8,2904.3,0.76591038]
[1644651950766,0.6495623,2904.7,2904.3,0.76591038]
[1644651950965,2.3719019,2904.7,2903.6,0.1721]
[1644651951267,0.82037773,2904.6,2904.5,0.312964]
[1644651951673,0.7721,2904.6,2904.5,0.10556187]
[1644651951868,2.63839067,2904.6,2904.5,0.10556187]
[1644651952170,2.63839067,2904.6,2904.5,6.187e-05]
[1644651952367,2.63839067,2904.6,2903.2,0.1721]
[1644651952368,2.5840274,2904.4,2903.2,0.1721]
[1644651952567,0.64856822,2904.2,2903.2,0.1721]
[1644651952775,0.64856822,2904.0,2903.0,0.001]
[1644651953068,0.64856822,2904.0,2902.9,0.00706981]
[1644651953069,0.1721,2903.9,2902.9,0.00706981]
[1644651953274,0.64856822,2903.8,2903.3,0.71680684]
[1644651953473,0.1721,2903.9,2903.3,0.71680684]
[1644651953674,0.00851594,2903.7,2903.3,0.71680684]
[1644651953873,0.23065067,2903.6,2903.3,0.71680684]
[1644651954738,0.23065067,2903.5,2903.3,0.71680684]
[1644651954932,0.23065067,2903.4,2902.9,0.00556632]
[1644651955133,0.23065067,2903.3,2902.9,0.00556632]
[1644651955434,0.23065067,2903.2,2902.9,0.00556632]
[1644651955634,4.00302252,2903.6,2902.7,0.45481349]
[1644651955635,3.62028005,2903.5,2902.7,0.45481349]
[1644651955833,0.23065067,2903.4,2902.8,0.1721]
[1644651956035,0.23065067,2903.4,2903.0,0.84195899]
[1644651956634,0.23065067,2903.3,2903.0,0.84195899]
[1644651956834,0.23065067,2903.2,2903.0,0.84195899]
[1644651957035,0.23065067,2903.1,2903.0,0.84195899]
[1644651958282,1.86136,2903.9,2903.0,0.84195899]
[1644651958283,0.00742559,2903.7,2903.0,0.84195899]
[1644651958482,0.22605369,2903.6,2903.0,0.84195899]
[1644651959483,0.22605369,2903.5,2903.0,0.84195899]
[1644651959683,0.22605369,2903.6,2903.0,0.84195899]
[1644651959885,0.22605369,2903.4,2903.0,0.84195899]
[1644651960083,0.00755655,2903.7,2903.0,0.84195899]
[1644651960084,0.22605369,2903.3,2903.0,0.84195899]
[1644651960285,0.00755655,2903.7,2903.0,1.01405899]
[1644651960286,0.22605369,2903.2,2903.0,1.01405899]
[1644651960485,0.86136,2903.9,2903.1,0.001]
[1644651960684,0.00755625,2903.7,2903.1,0.001]
[1644651960886,0.22596063,2903.6,2903.0,0.84295899]
[1644651961086,0.22596063,2903.6,2903.4,0.69773264]
[1644651961934,0.00755696,2903.7,2903.4,0.69773264]
[1644651962133,0.22585457,2903.6,2903.4,0.69773264]
[1644651962326,0.00755696,2903.7,2903.6,3.3]
[1644651962530,0.00755696,2903.7,2903.6,7.09888929]
[1644651962726,0.00755696,2903.7,2903.6,4.096]
[1644651962925,0.92496816,2904.9,2903.6,5.096]
[1644651963127,0.27639994,2904.9,2903.7,4.03866768]
[1644651963330,0.0075417,2903.8,2903.7,1.3]
[1644651963731,0.0075417,2903.8,2903.6,0.3]
[1644651964132,0.64856822,2904.8,2903.4,0.99773264]
[1644651964333,0.00754167,2903.8,2903.5,3.89712556]
[1644651964532,0.00754167,2903.8,2903.4,1.29773264]
[1644651965673,0.64856822,2904.5,2903.5,9.19370135]
[1644651965872,0.64856822,2904.5,2903.6,1.0]
[1644651965873,0.00754173,2903.7,2903.6,1.0]
[1644651966073,0.00754173,2903.7,2903.6,1.496]
[1644651966276,0.00754173,2903.7,2903.6,1.096]
[1644651966473,0.1721,2904.8,2903.6,1.096]
[1644651966672,0.1721,2904.8,2904.1,0.81103194]
[1644651966673,0.64856822,2904.7,2904.1,0.81103194]
[1644651966873,0.64856822,2904.7,2904.1,0.5675407]
[1644651967073,0.82066822,2904.6,2904.1,0.5675407]
[1644651967273,0.82066822,2904.6,2903.7,0.1721]
[1644651967274,1.50971822,2904.6,2903.7,0.1721]
[1644651967473,0.1721,2904.5,2903.7,0.1721]
[1644651967876,0.0075382,2904.3,2903.7,0.1721]
[1644651968077,0.0075382,2904.3,2903.5,3.5]
[1644651968285,0.0075382,2904.3,2903.6,1.496]
[1644651968581,0.0075382,2904.3,2903.7,0.1721]
[1644651968783,0.0075382,2904.3,2903.8,0.496]
[1644651969083,0.64933182,2905.1,2903.9,0.1721]
[1644651969084,0.00753829,2904.1,2903.9,0.1721]
[1644651969283,0.00753829,2904.1,2904.0,1.3660142]
[1644651969722,0.00753829,2904.1,2904.0,1.9660142]
[1644651970119,0.0007636,2905.1,2904.0,1.9660142]
[1644651970323,0.0007636,2905.1,2904.9,0.86549709]
[1644651970522,0.0007636,2905.1,2904.1,4.05065538]
[1644651970724,0.0007636,2905.1,2904.2,1.0]
[1644651971021,0.0007636,2905.1,2904.3,0.4721]
[1644651971322,0.0007636,2905.1,2904.2,0.4721]
[1644651971525,0.00753735,2904.8,2904.2,0.4721]
[1644651971723,0.00753735,2904.8,2904.7,0.75318034]
[1644651972523,0.0007636,2905.1,2904.2,1.1721]
[1644651972827,0.0007636,2905.1,2904.2,0.1721]
[1644651972828,0.00753732,2904.9,2904.2,0.1721]
[1644651973474,0.00753732,2904.9,2904.7,0.78522748]
[1644651973674,0.0007636,2905.1,2904.7,0.78522748]
[1644651974276,0.0007636,2905.1,2904.7,1.08522748]
[1644651974474,0.0007636,2905.1,2904.7,0.78522748]
[1644651974676,0.0007636,2905.1,2904.7,1.08522748]
[1644651974877,0.0007636,2905.1,2904.7,1.38522748]
[1644651975075,0.00753738,2905.0,2904.7,1.38522748]
[1644651976176,0.0007636,2905.1,2904.7,1.38522748]
[1644651976375,0.00753741,2905.0,2904.8,0.496]
[1644651977420,0.0007636,2905.1,2904.8,4.08895541]
[1644651977621,0.00753738,2905.0,2904.8,4.19013183]
[1644651977821,0.00753738,2905.0,2904.9,4.57394791]
[1644651978023,0.00753738,2905.0,2904.9,5.36994791]
[1644651978223,0.00753738,2905.0,2904.9,5.66994791]
[1644651978425,0.00753738,2905.0,2904.9,10.66994791]
[1644651978627,0.0007636,2905.1,2904.9,10.66994791]
[1644651978824,0.00657532,2905.1,2904.9,10.66994791]
[1644651979025,0.00657532,2905.1,2904.9,2.096]
[1644651979225,0.01907438,2905.0,2904.9,2.096]
[1644651979424,0.01907438,2905.0,2904.9,1.096]
[1644651980027,0.01723933,2905.0,2904.9,0.6]
[1644651980229,0.01723933,2905.0,2904.4,1.0]
[1644651980429,0.01723933,2905.0,2904.3,3.8449]
[1644651980675,0.01723933,2905.0,2904.3,4.2728]
[1644651980970,0.01723933,2905.0,2904.4,1.0]
[1644651981166,0.01723933,2905.0,2904.4,1.3]
[1644651981366,0.00754195,2904.8,2904.4,1.3]
[1644651981766,0.00754195,2904.8,2904.5,0.66254737]
[1644651982170,0.01723933,2905.0,2904.5,0.96254737]
[1644651982371,0.00768408,2904.8,2904.5,0.96254737]
[1644651982571,0.00768408,2904.8,2904.5,0.66254737]
[1644651983472,0.01723933,2905.0,2904.5,0.66254737]
[1644651983672,0.0078197,2904.8,2904.5,0.83464737]
[1644651983873,0.0078197,2904.8,2904.5,1.13464737]
[1644651984073,0.0078197,2904.8,2904.5,1.43464737]
[1644651984519,0.01723933,2905.0,2904.5,1.93064737]
[1644651984719,0.0078197,2904.8,2904.5,1.93064737]
[1644651985821,0.01723933,2905.0,2904.5,1.93064737]
[1644651986018,0.00764547,2904.8,2904.5,1.75854737]
[1644651987020,0.01723933,2905.0,2904.5,1.75854737]
[1644651987220,0.00747834,2904.8,2904.5,1.75854737]
[1644651988282,0.01723933,2905.0,2904.5,1.75854737]
[1644651988481,0.00747834,2904.8,2904.5,1.75854737]
[1644651989279,0.01723933,2905.0,2904.5,1.75854737]
[1644651989479,0.01723933,2905.0,2904.5,5.44430505]
[1644651989677,0.01884856,2904.7,2904.6,1.0]
[1644651989877,0.01884856,2904.7,2904.5,2.26254737]
[1644651990079,0.01884856,2904.7,2904.5,1.26254737]
[1644651990684,0.01884856,2904.7,2904.5,0.0422036]
[1644651990879,0.02638177,2904.7,2904.5,0.0422036]
[1644651991081,0.18606941,2904.6,2904.5,0.0422036]
[1644651991479,0.02638177,2904.7,2904.5,0.0422036]
[1644651991680,0.01884856,2904.7,2904.5,0.0422036]
[1644651991921,0.18596812,2904.6,2904.5,0.0422036]
[1644651993121,0.18596812,2904.6,2904.1,0.4721]
[1644651993324,0.18596812,2904.6,2904.1,0.3]
[1644651993524,0.18597816,2904.5,2903.8,1.0]
[1644651993729,0.18597816,2904.4,2903.8,1.0]
[1644651993927,0.0263794,2904.7,2903.7,1.0]
[1644651993928,0.18597816,2904.3,2903.7,1.0]
[1644651994127,0.18597816,2904.3,2903.8,0.85923828]
[1644651994329,0.01884856,2904.7,2904.3,0.76326853]
[1644651994626,0.18599813,2904.6,2904.3,0.76326853]
[1644651994828,0.19092426,2905.0,2904.3,1.36326853]
[1644651994829,0.01882426,2905.0,2904.3,1.36326853]
[1644651995027,0.18596687,2904.9,2904.3,1.36326853]
[1644651995526,0.00752235,2904.7,2904.3,1.36326853]
[1644651995772,0.00752235,2904.7,2904.3,0.76326853]
[1644651995970,0.18592831,2904.6,2904.3,1.06326853]
[1644651996374,0.18592831,2904.6,2904.3,1.36326853]
[1644651996771,0.00754783,2904.6,2904.3,1.36326853]
[1644651997774,0.01882426,2905.0,2904.4,8.76928044]
[1644651997972,0.00754973,2904.6,2904.5,1.496]
[1644651998171,0.00754973,2904.6,2904.5,5.093959]
[1644651998377,0.00754973,2904.6,2904.5,5.393959]
[1644651998981,0.0007636,2905.1,2904.6,3.15]
[1644651999276,0.00754967,2904.7,2904.6,7.71893187]
[1644651999519,0.00754967,2904.7,2904.6,3.946]
[1644652000120,0.01889716,2904.9,2904.6,3.946]
[1644652000320,0.01889716,2904.9,2904.7,0.75059374]
[1644652000321,0.0081301,2904.8,2904.7,0.75059374]
[1644652000721,0.0081301,2904.8,2904.7,1.05059374]
[1644652001325,0.01889716,2904.9,2904.7,1.05059374]
[1644652001524,0.02702677,2904.9,2904.7,1.05059374]
[1644652002524,0.01889716,2904.9,2904.7,1.05059374]
[1644652003024,0.02702674,2904.9,2904.7,1.05059374]
[1644652003473,0.02702674,2904.9,2904.8,1.77725371]
[1644652003673,0.02702674,2904.9,2904.8,2.07725371]
[1644652003674,2.674e-05,2904.9,2904.8,2.07725371]
[1644652003873,0.0007636,2905.1,2904.8,5.68754782]
[1644652004076,0.00812955,2905.0,2904.9,1.28125371]
[1644652004272,0.00812955,2905.0,2904.9,2.07725371]
[1644652004873,0.00812955,2905.0,2904.9,5.76699055]
[1644652005073,0.0007636,2905.1,2904.9,5.76699055]
[1644652005274,0.0007636,2905.1,2905.0,9.00911377]
[1644652005475,0.0007636,2905.1,2905.0,0.9681]
[1644652005674,0.0007636,2905.1,2905.0,5.88833721]
[1644652005876,0.0007636,2905.1,2905.0,2.24935371]
[1644652008731,0.15883802,2905.9,2905.1,3.3]
[1644652008931,2.953e-05,2905.2,2905.1,0.1719]
[1644652009131,2.953e-05,2905.2,2905.1,11.6699]
[1644652009329,2.953e-05,2905.2,2905.1,13.27949288]
[1644652009530,2.953e-05,2905.2,2905.1,13.77549288]
[1644652009734,1.01124215,2906.6,2905.1,13.77549288]
[1644652009930,1.01124215,2906.6,2905.5,0.63645185]
[1644652010131,0.1721,2906.8,2905.6,1.80559288]
[1644652010132,0.14648452,2906.5,2905.6,1.80559288]
[1644652010332,0.86475763,2906.7,2906.6,0.69848995]
[1644652010534,1.03665763,2906.7,2906.6,0.69848995]
[1644652010785,1.18296392,2906.7,2906.4,0.68600372]
[1644652010983,0.14630629,2906.6,2906.4,0.68600372]
[1644652011185,0.86475763,2906.7,2906.4,0.68600372]
[1644652011186,0.14630629,2906.5,2906.4,0.68600372]
[1644652011388,0.14630629,2906.5,2906.4,0.98600372]
[1644652011788,0.14630629,2906.5,2906.4,1.28600372]
[1644652014430,0.14630629,2906.5,2906.4,0.98600372]
[1644652015221,0.14630629,2906.5,2906.4,0.68600372]
[1644652015421,0.14630629,2906.5,2905.9,0.496]
[1644652015622,0.14630629,2906.4,2905.9,0.496]
[1644652015827,0.14630629,2906.3,2905.9,0.496]
[1644652016021,0.14630629,2906.2,2905.9,0.496]
[1644652016223,0.00851874,2906.3,2905.7,3.8713]
[1644652016224,0.14630629,2906.1,2905.7,3.8713]
[1644652016423,0.14630629,2906.0,2905.5,0.633683]
[1644652016625,0.14630629,2905.9,2905.6,0.76754042]
[1644652016825,0.00851874,2906.3,2905.6,0.76754042]
[1644652017027,0.12886877,2906.2,2905.6,4.69117196]
[1644652017224,0.00384822,2906.8,2906.5,0.85669984]
[1644652017424,1.03665763,2906.9,2906.5,0.85669984]
[1644652017624,0.12884471,2906.8,2906.5,0.85669984]
[1644652017824,0.86475763,2906.9,2906.5,0.85669984]
[1644652017825,0.12884471,2906.7,2906.5,0.85669984]
[1644652018172,0.12884471,2906.6,2906.5,0.85669984]
[1644652018577,0.13269293,2906.9,2906.5,0.85669984]
[1644652018876,0.64868815,2906.9,2906.5,0.85082227]
[1644652019078,0.77753286,2906.9,2906.5,0.85082227]
[1644652019278,0.12884471,2906.8,2906.5,0.85082227]
[1644652019479,0.12884471,2906.7,2906.5,0.85082227]
[1644652019679,0.12884471,2906.6,2906.5,1.15082227]
[1644652019878,0.12884471,2906.6,2906.5,0.85082227]
[1644652020077,0.65253637,2906.9,2906.5,0.85082227]
[1644652020277,0.64868815,2906.6,2905.6,0.55]
[1644652020481,0.1719,2906.8,2905.9,0.3]
[1644652020482,0.72753286,2906.5,2905.9,0.3]
[1644652020678,0.12884471,2906.4,2905.9,0.3]
[1644652020882,0.00851065,2906.2,2905.6,0.85]
[1644652021079,0.12884471,2906.1,2905.6,0.6]
[1644652021280,0.12884471,2906.1,2905.6,0.3]
[1644652021479,0.12884471,2906.1,2905.7,1.10344275]
[1644652021680,0.12884471,2906.1,2905.7,1.40344275]
[1644652022123,0.13735551,2906.0,2905.7,1.40344275]
[1644652022328,0.0085108,2906.0,2905.8,0.1719]
[1644652022926,0.86860585,2907.1,2905.8,0.1719]
[1644652023127,3.40898138,2907.0,2906.4,0.82057309]
[1644652023335,0.12764966,2906.9,2906.4,0.82057309]
[1644652024433,0.00851025,2906.8,2906.4,0.82057309]
[1644652024631,0.12764966,2906.7,2906.4,0.82057309]
[1644652025674,0.12764966,2906.6,2906.4,0.82057309]
[1644652026472,0.12764966,2906.6,2905.7,0.1719]
[1644652026673,0.00384822,2906.5,2905.7,0.1719]
[1644652026874,0.00384822,2906.5,2905.7,0.4719]
[1644652026875,0.13149788,2906.5,2905.7,0.4719]
[1644652027076,0.12764966,2906.4,2905.7,0.4719]
[1644652027275,0.12764966,2906.3,2905.7,0.4719]
[1644652027478,0.12764966,2906.2,2905.5,1.496]
[1644652027675,0.12764966,2906.1,2905.9,0.84636032]
[1644652027875,0.12764966,2906.0,2905.9,0.84636032]
[1644652028076,0.1361605,2906.0,2905.9,0.84636032]
[1644652028981,0.12764966,2906.0,2905.9,0.84636032]
[1644652029435,0.12764966,2906.0,2905.9,1.14636032]
[1644652030426,0.11848194,2906.0,2905.9,1.14636032]
[1644652030826,0.11848194,2906.0,2905.3,6.7846]
[1644652030827,0.11848194,2906.0,2905.3,3.1138]
[1644652031027,0.11848194,2906.0,2904.9,4.1178]
[1644652031231,0.1719,2905.9,2904.9,3.9459]
[1644652031429,0.11848194,2905.8,2904.9,3.9459]
[1644652031627,3.77271792,2905.9,2904.9,3.9459]
[1644652031628,0.11848194,2905.7,2904.9,3.9459]
[1644652031829,0.12699304,2905.6,2905.4,0.754027]
[1644652032028,0.11848194,2905.5,2904.9,3.6959]
[1644652032229,0.11848194,2905.4,2904.9,0.6]
[1644652032429,0.11848194,2905.3,2904.9,0.3]
[1644652032632,0.11848194,2905.2,2905.0,0.3]
[1644652032830,0.64789951,2905.8,2904.8,0.00712051]
[1644652032831,0.11848194,2905.1,2904.8,0.00712051]
[1644652033031,0.00851121,2905.3,2904.8,0.00712051]
[1644652033282,0.11428849,2905.2,2904.8,0.00712051]
[1644652033479,0.00851121,2905.3,2904.9,2.16616842]
[1644652033780,3.45811231,2906.0,2905.0,1.33784228]
[1644652033781,0.00384822,2906.0,2905.0,1.33784228]
[1644652033978,0.0085111,2905.3,2905.0,1.33784228]
[1644652034178,0.0085111,2905.3,2905.0,2.33784228]
[1644652034379,0.0085111,2905.3,2905.1,1.33784228]
[1644652034580,0.0085111,2905.3,2905.1,1.63784228]
[1644652034780,0.0085111,2905.3,2905.2,1.33812387]
[1644652034980,0.65174773,2906.1,2905.1,0.3]
[1644652035284,0.65174773,2906.1,2905.5,0.75292784]
[1644652035285,0.76213776,2906.0,2905.5,0.75292784]
[1644652035480,0.76213776,2906.0,2905.0,1.0]
[1644652035781,0.00384822,2905.9,2905.0,1.0]
[1644652036480,0.00851113,2905.6,2905.0,1.0]
[1644652036681,0.11423825,2905.5,2905.4,0.75102388]
[1644652037227,0.00851113,2905.6,2905.4,1.35102388]
[1644652037428,0.00384822,2905.9,2905.4,1.35102388]
[1644652037628,0.00851113,2905.6,2905.4,1.35102388]
[1644652038128,0.11431636,2905.5,2905.4,1.35102388]
[1644652038333,0.11430519,2905.5,2905.4,1.35102388]
[1644652038930,0.00851113,2905.6,2905.4,1.35102388]
[1644652039133,0.11430519,2905.5,2905.4,1.35102388]
[1644652039331,0.00851113,2905.6,2905.4,7.04787115]
[1644652039534,0.00851113,2905.6,2905.5,1.51170495]
[1644652039732,0.00851113,2905.6,2905.5,2.00770495]
[1644652039931,1.03665763,2907.1,2905.5,2.00770495]
[1644652039932,0.65174773,2906.7,2905.5,2.00770495]
[1644652040132,0.64789951,2906.6,2906.4,0.8035705]
[1644652040335,0.65174773,2906.6,2906.4,0.8035705]
[1644652040532,0.64789951,2906.6,2906.4,0.8035705]
[1644652040975,0.76218416,2906.5,2906.4,0.8035705]
[1644652041379,0.64789951,2906.5,2906.4,0.8035705]
[1644652041575,0.76218416,2906.5,2906.4,0.8035705]
[1644652041775,0.11428465,2906.5,2906.4,0.8035705]
[1644652042377,0.11428465,2906.5,2906.4,1.4035705]
[1644652044431,0.11428465,2906.5,2906.4,1.1035705]
[1644652044624,0.11428465,2906.5,2906.4,1.4035705]
[1644652045630,0.00638073,2906.6,2906.5,2.55]
[1644652045828,0.65174773,2907.1,2906.5,4.3049]
[1644652046027,7.30639994,2907.6,2906.5,4.3049]
[1644652046028,0.00384822,2906.9,2906.5,4.3049]
[1644652046230,0.00638073,2906.6,2906.5,4.3049]
[1644652046827,0.00638073,2906.6,2906.5,4.8009]
[1644652047028,0.65174773,2907.2,2906.5,4.8009]
[1644652047229,0.65174773,2907.2,2906.6,4.05411301]
[1644652047427,0.00851551,2906.7,2906.6,4.55011301]
[1644652047628,0.00851551,2906.7,2906.6,1.096]
[1644652048280,0.00384822,2907.2,2906.6,1.096]
[1644652048474,0.00384822,2907.2,2906.6,4.76535483]
[1644652048475,0.00851544,2906.8,2906.6,4.76535483]
[1644652048675,0.00851544,2906.8,2906.6,1.096]
[1644652049077,1.03665763,2907.4,2906.7,6.91512345]
[1644652049280,1.03665763,2907.4,2906.8,0.496]
[1644652049281,0.1719,2907.4,2906.8,0.496]
[1644652049476,0.1719,2907.4,2906.9,3.368]
[1644652049477,0.00385054,2907.4,2906.9,3.368]
[1644652049677,0.00385054,2907.4,2907.0,0.496]
[1644652049877,0.00385054,2907.4,2907.1,0.168]
[1644652050077,0.00385054,2907.4,2907.2,1.2874136]
[1644652050274,0.00385054,2907.4,2907.2,1.8874136]
[1644652050478,5.054e-05,2907.4,2907.3,0.168]
[1644652050676,5.054e-05,2907.4,2907.3,0.664]
[1644652050879,0.01262943,2908.8,2907.3,0.664]
[1644652050880,0.86609481,2908.8,2907.6,3.3]
[1644652051076,0.02549833,2907.9,2907.7,5.6679]
[1644652051276,7.46,2909.2,2907.8,3.99570112]
[1644652051479,7.46,2909.2,2907.9,0.496]
[1644652051679,7.46,2909.2,2907.9,0.6679]
[1644652051932,7.46,2909.2,2907.9,0.796]
[1644652052422,7.6319,2909.2,2907.9,0.796]
[1644652052623,0.1719,2909.2,2907.9,0.796]
[1644652052824,1.30349338,2909.4,2907.9,0.796]
[1644652053122,0.1719,2909.3,2908.8,0.71451572]
[1644652053528,0.1719,2909.3,2908.0,0.25]
[1644652053730,0.39255328,2908.5,2907.8,0.3]
[1644652054127,0.39255328,2908.5,2907.6,0.6]
[1644652054325,0.39255328,2908.5,2907.6,0.3]
[1644652054528,0.39255328,2908.5,2907.7,0.78916308]
[1644652054725,0.39255328,2908.5,2907.8,0.4719]
[1644652055531,0.39255328,2908.5,2908.3,0.69082901]
[1644652055976,0.39255328,2908.5,2907.8,0.0072093]
[1644652056877,0.00851242,2908.3,2908.1,0.80550946]
[1644652057676,0.00851242,2908.3,2908.1,1.40550946]
[1644652057876,0.39255328,2908.5,2908.1,0.80550946]
[1644652058283,0.00851238,2908.3,2908.1,1.40550946]
[1644652059083,0.39255328,2908.5,2908.1,0.80550946]
[1644652059284,0.00851238,2908.3,2908.1,1.10550946]
[1644652059524,0.00851238,2908.3,2908.1,1.40550946]
[1644652060324,0.39255328,2908.5,2908.1,0.80550946]
[1644652060725,0.00803685,2908.3,2908.1,1.40550946]
[1644652060925,0.00803685,2908.3,2908.1,0.80550946]
[1644652061334,0.00803685,2908.3,2908.1,1.40550946]
[1644652061527,0.39255328,2908.5,2908.1,1.40550946]
[1644652061729,0.00803685,2908.3,2908.1,1.40550946]
[1644652062129,0.00803685,2908.3,2908.1,0.80550946]
[1644652062330,0.00803685,2908.3,2908.1,1.40550946]
[1644652062529,0.00803685,2908.3,2908.1,0.80550946]
[1644652062729,0.39255328,2908.5,2908.1,1.40550946]
[1644652062934,0.00803685,2908.3,2908.1,1.40550946]
[1644652063982,0.39255328,2908.5,2908.1,1.40550946]
[1644652064179,0.00813476,2908.3,2908.1,1.40550946]
[1644652065179,0.39641223,2908.5,2908.1,1.40550946]
[1644652065380,0.00813476,2908.3,2908.1,1.40550946]
[1644652066381,0.39641223,2908.5,2908.1,1.40550946]
[1644652066586,0.03253416,2908.8,2908.3,3.0]
[1644652066783,0.03253416,2908.8,2908.3,3.3]
[1644652067026,0.03253416,2908.8,2908.4,0.496]
[1644652067426,0.00385895,2909.1,2908.4,0.496]
[1644652067624,7.6319,2909.5,2908.4,0.496]
[1644652067625,0.00385895,2909.4,2908.4,0.6678]
[1644652069530,3.30756791,2910.1,2908.4,0.6678]
[1644652069531,0.00385895,2909.6,2908.4,0.6678]
[1644652069731,0.00385895,2909.7,2908.5,5.3]
[1644652069929,0.00385895,2909.9,2908.6,1.46040412]
[1644652070130,0.00385895,2910.1,2908.6,1.46040412]
[1644652070329,0.00385895,2910.1,2908.6,0.9678]
[1644652070531,0.00385895,2910.1,2908.9,5.0]
[1644652070779,0.00385895,2910.1,2909.0,0.6678]
[1644652070999,0.00385895,2910.5,2909.1,0.496]
[1644652071175,0.00385895,2910.7,2909.1,0.6678]
[1644652071376,0.00851687,2909.7,2909.1,0.9678]
[1644652071576,0.00851687,2909.7,2909.2,0.81037488]
[1644652071779,0.00851687,2909.7,2909.3,0.9678]
[1644652072378,3.3480058,2910.7,2909.3,1.2678]
[1644652072577,0.00851691,2909.6,2909.3,1.096]
[1644652072878,0.00851691,2909.6,2909.4,0.1718]
[1644652073177,0.00851691,2909.6,2909.3,1.096]
[1644652073581,0.00385895,2910.6,2909.3,1.096]
[1644652074434,0.00385895,2910.6,2910.0,1.24456107]
[1644652074924,0.1718,2910.5,2910.0,1.24456107]
[1644652075224,0.00851631,2910.4,2910.0,0.64456107]
[1644652075624,0.00851631,2910.4,2909.3,0.496]
[1644652075825,0.01237526,2910.4,2909.3,0.796]
[1644652076026,0.00385895,2910.4,2909.3,0.796]
[1644652076225,0.00851665,2910.0,2909.3,0.796]
[1644652077226,0.00851665,2910.0,2908.9,16.86349]
[1644652077227,0.1718,2910.3,2908.9,10.5497]
[1644652077429,0.0085168,2909.8,2908.8,3.4737]
[1644652077728,0.1718,2909.7,2908.2,3.7852]
[1644652077928,0.01641215,2909.6,2908.2,3.7852]
[1644652078173,0.1718,2909.5,2908.2,3.7852]
[1644652078376,0.00385895,2909.4,2908.9,0.67748413]
[1644652078579,0.00851736,2909.0,2908.9,0.67748413]
[1644652079579,0.00385895,2909.5,2908.9,0.67748413]
[1644652079778,0.00851732,2909.1,2908.9,0.67748413]
[1644652080580,0.00851732,2909.1,2908.9,0.97748413]
[1644652080778,0.00385895,2909.6,2908.9,1.27748413]
[1644652080977,0.00385895,2909.6,2908.9,0.97748413]
[1644652081179,0.00851728,2909.1,2908.9,1.27748413]
[1644652081578,0.00851728,2909.1,2908.9,0.97748413]
[1644652082027,0.00385895,2909.6,2908.9,1.27748413]